[Event "GER-chT Youth Countries 2020"]
[Site "Berlin"]
[Date "2020.10.03"]
[Round "6"]
[White "Schiewe, Nadin"]
[Black "Nitsche, Nikolai"]
[Result "0-1"]
[ECO "D05"]
[WhiteElo "1660"]
[BlackElo "1721"]
[Annotator "NA"]
[PlyCount "87"]
[EventDate "2020.09.30"]
[EventType "team-tourn"]
[EventRounds "7"]
[EventCountry "GER"]
[SourceTitle "playchess.com"]
[Source "ChessBase"]
[SourceQuality "1"]
[TimeControl "30/5400+30:0"]

1. d4 {[%emt 0:00:00]} d5 {[%emt 0:00:00]} 2. Nf3 {[%emt 0:00:00]} Nf6 {[%emt 0:00:00]} 3. e3 {[%emt 0:00:00]} e6 {[%emt 0:00:03]} 4. Bd3 {[%emt 0:00:00]} c5 {[%emt 0:00:11]} 5. c3 {[%emt 0:00:11]} Nc6 {[%emt 0:00:25]} 6. Ne5 {[%emt 0:02:31]} Nxe5 {[%emt 0:01:18]} 7. dxe5 {[%emt 0:00:07]} Nd7 {[%emt 0:00:05]} 8. f4 {[%emt 0:00:48]} c4 {[%emt 0:01:43]} 9. Bc2 {[%emt 0:00:32]} b6 {[%emt 0:02:24]} 10. Nd2 {[%emt 0:02:35]} Be7 {[%emt 0:09:05]} 11. Nf3 {[%emt 0:01:27]} O-O {[%emt 0:09:25]} 12. O-O {[%emt 0:01:43]} Bb7 {[%emt 0:04:48]} 13. Nd4 {[%emt 0:09:40]} Bc5 {[%emt 0:13:50]} 14. Rf3 {[%emt 0:06:48]} g6 {[%emt 0:02:28]} 15. Rg3 {[%emt 0:02:28]} Qe7 {[%emt 0:01:04]} 16. Qg4 {[%emt 0:10:43]} Kh8 {[%emt 0:10:44]} 17. Bd2 {[%emt 0:04:01]} Bxd4 {[%emt 0:06:14]} 18. exd4 {[%emt 0:00:19]} f5 {[%emt 0:00:15]} 19. Qh3 {[%emt 0:05:47]} b5 {[%emt 0:00:44]} 20. Rxg6 {[%emt 0:06:34]} Rf7 {[%emt 0:04:52]} 21. Be1 {[%emt 0:06:15]} Re8 {[%emt 0:00:21]} 22. a4 {[%emt 0:02:57]} a6 {[%emt 0:03:06]} 23. axb5 {[%emt 0:01:45]} axb5 {[%emt 0:00:18]} 24. Bh4 {[%emt 0:03:53]} Qf8 {[%emt 0:01:33]} 25. Ra7 {[%emt 0:01:11]} Bc8 {[%emt 0:02:23]} 26. Kf2 {[%emt 0:12:51]} b4 {[%emt 0:06:03]} 27. Ba4 {[%emt 0:03:54]} bxc3 {[%emt 0:00:49]} 28. bxc3 {[%emt 0:11:26]} Qa3 {[%emt 0:01:05]} 29. Rxd7 {[%emt 0:01:01]} Qb2+ {[%emt 0:00:57]} 30. Kf1 {[%emt 0:00:35]} Qc1+ {[%emt 0:00:54]} 31. Ke2 {[%emt 1:30:20]} Qb2+ {[%emt 1:30:39]} 32. Ke1 {[%emt 0:01:16]} Bxd7 {[%emt 0:05:18]} 33. Bxd7 {[%emt 0:00:38]} Ra8 {[%emt 0:01:15]} 34. Kf1 {[%emt 0:01:39]} Qc1+ {[%emt 0:02:46]} 35. Be1 {[%emt 0:00:26]} Qxf4+ {[%emt 0:00:58]} 36. Kg1 {[%emt 0:00:39]} Ra1 {[%emt 0:00:52]} 37. Qg3 {[%emt 0:00:45]} Qxg3 {[%emt 0:00:57]} 38. Rxg3 {[%emt 0:00:05]} Rxd7 {[%emt 0:00:06]} 39. Kf2 {[%emt 0:00:47]} f4 {[%emt 0:01:08]} 40. Rg4 {[%emt 0:00:14]} Rb7 {[%emt 0:00:11]} 41. Rxf4 {[%emt 0:00:59]} Rb2+ {[%emt 0:01:49]} 42. Kg3 {[%emt 0:00:06]} Rxe1 {[%emt 0:00:22]} 43. Rf6 {[%emt 0:00:15]} Rb6 {[%emt 0:00:10]} 44. Kg4 {[%emt 0:00:11]} 0-1

[Event "GER-chT Youth Countries 2020"]
[Site "Berlin"]
[Date "2020.10.03"]
[Round "6"]
[White "Tovmasyan, Minas"]
[Black "Deuer, Marius"]
[Result "0-1"]
[ECO "E15"]
[WhiteElo "1658"]
[BlackElo "2161"]
[Annotator "ChessBase"]
[PlyCount "116"]
[EventDate "2020.09.30"]
[EventType "team-tourn"]
[EventRounds "7"]
[EventCountry "GER"]
[SourceTitle "playchess.com"]
[Source "ChessBase"]
[SourceQuality "1"]
[TimeControl "30/5400+30:0"]

1. d4 {[%emt 0:00:00]} Nf6 {[%emt 0:00:00]} 2. c4 {[%emt 0:00:00]} e6 {[%emt 0:00:00]} 3. Nf3 {[%emt 0:00:00]} b6 {[%emt 0:00:00]} 4. g3 {[%emt 0:00:00]} Ba6 {[%emt 0:00:00]} 5. Qc2 {[%emt 0:04:52]} c5 {[%emt 0:00:00]} 6. Bg2 {[%emt 0:01:34]} Bb7 {[%emt 0:00:06]} 7. O-O {[%emt 0:01:50]} Nc6 {[%emt 0:12:10]} 8. dxc5 {[%emt 0:07:41]} bxc5 {[%emt 0:05:18]} 9. Nc3 {[%emt 0:06:46]} Be7 {[%emt 0:10:32]} 10. e4 {[%emt 0:08:20]} d6 {[%emt 0:03:42]} 11. Rd1 {[%emt 0:02:33]} Qb8 {[%emt 0:02:57]} 12. b3 {[%emt 0:09:46]} O-O {[%emt 0:06:02]} 13. Re1 {[%emt 0:05:55]} Nd7 {[%emt 0:02:21]} 14. Bf4 {[%emt 0:05:52]} Bf6 {[%emt 0:11:45]} 15. Bg5 {[%emt 0:14:08]} Nd4 {[%emt 0:09:28]} 16. Nxd4 {[%emt 0:01:39]} Bxg5 {[%emt 0:06:34]} 17. Nde2 {[%emt 0:00:55]} Rd8 {[%emt 0:04:20]} 18. f4 {[%emt 0:01:23]} Bf6 {[%emt 0:00:12]} 19. Rad1 {[%emt 0:02:03]} a6 {[%emt 0:02:46]} 20. Rf1 {[%emt 0:08:47]} Qc7 {[%emt 0:02:48]} 21. g4 {[%emt 0:01:47]} h6 {[%emt 0:01:32]} 22. Qd2 {[%emt 0:00:50]} Nb8 {[%emt 0:05:29]} 23. g5 {[%emt 0:00:54]} hxg5 {[%emt 0:00:20]} 24. fxg5 {[%emt 0:00:06]} Be5 {[%emt 0:00:04]} 25. Nf4 {[%emt 0:05:50]} Nc6 {[%emt 0:10:32]} 26. g6 {[%emt 0:01:49]} Bxf4 27. Qxf4 {[%emt 0:00:11]} fxg6 {[%emt 0:02:46]} 28. Qg4 {[%emt 0:01:23]} Qe7 {[%emt 0:01:02]} 29. Qxg6 {[%emt 0:02:32]} Ne5 {[%emt 0:00:08]} 30. Qg3 {[%emt 0:01:04]} Rf8 {[%emt 0:01:09]} 31. Ne2 {[%emt 1:31:33]} Rxf1+ {[%emt 1:30:45]} 32. Rxf1 {[%emt 0:00:01]} Rf8 {[%emt 0:00:33]} 33. Nf4 {[%emt 0:01:20]} Nc6 {[%emt 0:00:28]} 34. Re1 {[%emt 0:03:04]} Qf6 {[%emt 0:00:32]} 35. Ng6 {[%emt 0:00:28]} Rf7 {[%emt 0:00:35]} 36. Kh1 {[%emt 0:00:32]} Qf2 {[%emt 0:00:28]} 37. Rf1 {[%emt 0:00:27]} Qxg3 {[%emt 0:00:25]} 38. hxg3 {[%emt 0:00:00]} Rxf1+ {[%emt 0:00:28]} 39. Bxf1 {[%emt 0:00:02]} Nb4 {[%emt 0:00:01]} 40. a3 {[%emt 0:01:31]} Bxe4+ {[%emt 0:01:03]} 41. Bg2 {[%emt 0:00:00]} Bxg6 {[%emt 0:00:00]} 42. axb4 {[%emt 0:00:00]} cxb4 {[%emt 0:00:00]} 43. Bc6 {[%emt 0:00:00]} Bc2 {[%emt 0:00:00]} 44. Ba4 {[%emt 0:00:00]} Kf7 {[%emt 0:00:00]} 45. Kg1 {[%emt 0:00:00]} Kf6 {[%emt 0:00:00]} 46. Kf2 {[%emt 0:00:00]} Ke5 {[%emt 0:00:00]} 47. Ke3 {[%emt 0:00:00]} g6 {[%emt 0:00:00]} 48. Kd2 {[%emt 0:00:00]} Be4 {[%emt 0:00:00]} 49. Ke3 {[%emt 0:00:00]} Bb7 {[%emt 0:00:00]} 50. Be8 {[%emt 0:00:00]} g5 {[%emt 0:00:23]} 51. Bd7 {[%emt 0:00:00]} d5 {[%emt 0:01:22]} 52. Kd3 {[%emt 0:00:00]} d4 {[%emt 0:00:50]} 53. Kd2 {[%emt 0:00:00]} Kd6 {[%emt 0:00:44]} 54. Be8 {[%emt 0:00:00]} e5 {[%emt 0:00:26]} 55. Kd3 {[%emt 0:00:00]} Kc5 {[%emt 0:00:04]} 56. Bg6 {[%emt 0:00:00]} Bf3 {[%emt 0:00:11]} 57. Kd2 {[%emt 0:00:00]} e4 {[%emt 0:00:08]} 58. Bf5 {[%emt 0:00:00]} d3 {[%emt 0:03:35]} 0-1

[Event "GER-chT Youth Countries 2020"]
[Site "Berlin"]
[Date "2020.10.03"]
[Round "6"]
[White "Schreidl, Michael"]
[Black "Brunner, Sophia"]
[Result "0-1"]
[ECO "C10"]
[WhiteElo "1640"]
[BlackElo "1850"]
[Annotator "NA"]
[PlyCount "156"]
[EventDate "2020.09.30"]
[EventType "team-tourn"]
[EventRounds "7"]
[EventCountry "GER"]
[SourceTitle "playchess.com"]
[Source "ChessBase"]
[SourceQuality "1"]
[TimeControl "30/5400+30:0"]

1. e4 {[%emt 0:00:00]} e6 {[%emt 0:00:00]} 2. d4 {[%emt 0:00:00]} d5 {[%emt 0:00:00]} 3. Nc3 {[%emt 0:00:00]} dxe4 {[%emt 0:00:00]} 4. Nxe4 {[%emt 0:00:00]} Nd7 {[%emt 0:00:03]} 5. Nf3 {[%emt 0:01:14]} Ngf6 {[%emt 0:00:07]} 6. Bd3 {[%emt 0:00:20]} c5 {[%emt 0:00:06]} 7. c3 {[%emt 0:02:10]} Nxe4 {[%emt 0:00:26]} 8. Bxe4 {[%emt 0:00:08]} Nf6 {[%emt 0:00:06]} 9. Bd3 {[%emt 0:03:54]} cxd4 {[%emt 0:06:06]} 10. Nxd4 {[%emt 0:02:17]} Bc5 {[%emt 0:01:47]} 11. Nb3 {[%emt 0:03:55]} Be7 {[%emt 0:08:32]} 12. O-O {[%emt 0:03:31]} O-O {[%emt 0:00:20]} 13. Qc2 {[%emt 0:01:04]} Qc7 {[%emt 0:03:17]} 14. h3 {[%emt 0:03:53]} b6 {[%emt 0:05:32]} 15. Bg5 {[%emt 0:05:48]} h6 {[%emt 0:00:19]} 16. Bh4 {[%emt 0:00:39]} Bb7 {[%emt 0:08:52]} 17. Nd4 {[%emt 0:04:19]} a6 {[%emt 0:00:58]} 18. Bg3 {[%emt 0:00:37]} Bd6 {[%emt 0:00:39]} 19. Bxd6 {[%emt 0:00:50]} Qxd6 {[%emt 0:00:06]} 20. Rad1 {[%emt 0:04:32]} Qf4 {[%emt 0:07:40]} 21. Ne2 {[%emt 0:09:24]} Qg5 {[%emt 0:07:41]} 22. Ng3 {[%emt 0:00:51]} Qf4 {[%emt 0:08:03]} 23. Ne2 {[%emt 0:02:14]} Qc7 {[%emt 0:04:13]} 24. Nd4 {[%emt 0:05:44]} Rfd8 {[%emt 0:05:21]} 25. Be2 {[%emt 0:09:10]} Be4 {[%emt 0:12:12]} 26. Bd3 {[%emt 0:01:31]} Bxd3 {[%emt 0:01:37]} 27. Rxd3 {[%emt 0:00:12]} Rd5 {[%emt 0:04:15]} 28. Rfd1 {[%emt 0:02:28]} Rad8 {[%emt 0:02:46]} 29. Nf3 {[%emt 0:07:00]} b5 {[%emt 0:01:09]} 30. Rxd5 {[%emt 0:04:48]} Rxd5 {[%emt 0:02:40]} 31. Rxd5 {[%emt 1:30:39]} Nxd5 {[%emt 1:30:02]} 32. a3 {[%emt 0:01:56]} Qc4 {[%emt 0:02:11]} 33. Ne5 {[%emt 0:04:48]} Qf4 {[%emt 0:04:25]} 34. Nf3 {[%emt 0:02:35]} f6 {[%emt 0:02:01]} 35. Qd2 {[%emt 0:04:00]} Qc7 {[%emt 0:01:21]} 36. Nd4 {[%emt 0:00:31]} Kf7 {[%emt 0:00:37]} 37. Qe2 {[%emt 0:02:15]} Nf4 {[%emt 0:01:28]} 38. Qf3 {[%emt 0:02:20]} e5 {[%emt 0:01:13]} 39. Ne2 {[%emt 0:01:06]} Nxe2+ {[%emt 0:00:27]} 40. Qxe2 {[%emt 0:00:11]} Qd6 {[%emt 0:00:43]} 41. Kf1 {[%emt 0:01:14]} Qd5 {[%emt 0:00:00]} 42. Kg1 {[%emt 0:00:00]} f5 {[%emt 0:00:00]} 43. Qe3 {[%emt 0:00:00]} Qd6 {[%emt 0:00:00]} 44. Qa7+ {[%emt 0:00:00]} Kf6 {[%emt 0:00:00]} 45. Qe3 {[%emt 0:00:00]} g5 {[%emt 0:00:00]} 46. g3 {[%emt 0:00:00]} Qd1+ {[%emt 0:00:00]} 47. Kg2 {[%emt 0:00:00]} Qd5+ {[%emt 0:00:00]} 48. Kg1 {[%emt 0:00:00]} f4 {[%emt 0:00:00]} 49. Qb6+ {[%emt 0:00:00]} Qe6 {[%emt 0:00:00]} 50. Qd8+ {[%emt 0:00:00]} Kg6 {[%emt 0:00:00]} 51. g4 {[%emt 0:00:00]} e4 {[%emt 0:00:50]} 52. Kh1 {[%emt 0:00:00]} h5 {[%emt 0:03:41]} 53. gxh5+ {[%emt 0:00:00]} Kxh5 {[%emt 0:00:01]} 54. Kg1 {[%emt 0:00:00]} e3 {[%emt 0:01:14]} 55. Qh8+ {[%emt 0:00:00]} Kg6 {[%emt 0:00:09]} 56. fxe3 {[%emt 0:00:00]} Qxe3+ {[%emt 0:00:12]} 57. Kf1 {[%emt 0:00:00]} Qc1+ {[%emt 0:00:18]} 58. Kf2 {[%emt 0:00:00]} Qxb2+ {[%emt 0:02:12]} 59. Kf3 {[%emt 0:00:00]} Qb3 {[%emt 0:00:43]} 60. Qe8+ {[%emt 0:00:00]} Qf7 {[%emt 0:00:14]} 61. Qc6+ {[%emt 1:23:41]} Qf6 {[%emt 1:30:19]} 62. Qe8+ {[%emt 0:00:23]} Kh6 {[%emt 0:00:20]} 63. Qc8 {[%emt 0:01:37]} Kg6 {[%emt 0:01:00]} 64. Qg8+ {[%emt 0:00:49]} Qg7 {[%emt 0:00:35]} 65. Qe6+ {[%emt 0:00:20]} Kh7 {[%emt 0:00:25]} 66. Qc8 {[%emt 0:00:17]} Qe7 {[%emt 0:00:37]} 67. Kg4 {[%emt 0:01:39]} Qf6 {[%emt 0:00:33]} 68. Qb7+ {[%emt 0:00:19]} Kg6 {[%emt 0:00:24]} 69. Qe4+ {[%emt 0:00:58]} Kg7 {[%emt 0:00:21]} 70. Qd5 {[%emt 0:06:33]} Kh6 {[%emt 0:00:37]} 71. h4 {[%emt 0:04:58]} gxh4 {[%emt 0:00:16]} 72. Qf3 {[%emt 0:00:41]} Qg5+ {[%emt 0:00:19]} 73. Kh3 {[%emt 0:00:04]} Qg3+ {[%emt 0:00:12]} 74. Qxg3 {[%emt 0:00:18]} hxg3 75. Kg2 {[%emt 0:02:08]} Kg5 {[%emt 0:00:13]} 76. Kf3 {[%emt 0:00:11]} Kf5 {[%emt 0:00:04]} 77. a4 {[%emt 0:00:15]} bxa4 {[%emt 0:00:35]} 78. c4 {[%emt 0:00:04]} a3 {[%emt 0:00:03]} 0-1

[Event "GER-chT Youth Countries 2020"]
[Site "Berlin"]
[Date "2020.10.03"]
[Round "6"]
[White "Wilmink, Anna"]
[Black "Richter, Johanna"]
[Result "1/2-1/2"]
[ECO "B33"]
[WhiteElo "1608"]
[BlackElo "1107"]
[Annotator "NA"]
[PlyCount "112"]
[EventDate "2020.09.30"]
[EventType "team-tourn"]
[EventRounds "7"]
[EventCountry "GER"]
[SourceTitle "playchess.com"]
[Source "ChessBase"]
[SourceQuality "1"]
[TimeControl "30/5400+30:0"]

1. e4 {[%emt 0:00:00]} c5 {[%emt 0:00:00]} 2. Nf3 {[%emt 0:00:00]} Nc6 {[%emt 0:00:00]} 3. d4 {[%emt 0:00:00]} cxd4 {[%emt 0:00:00]} 4. Nxd4 Nf6 5. Nc3 {[%emt 0:00:09]} e5 {[%emt 0:00:09]} 6. Ndb5 {[%emt 0:00:11]} d6 {[%emt 0:00:13]} 7. Bg5 {[%emt 0:00:12]} a6 {[%emt 0:00:08]} 8. Na3 {[%emt 0:00:14]} b5 {[%emt 0:00:05]} 9. Nd5 {[%emt 0:00:17]} Be7 {[%emt 0:00:10]} 10. Bxf6 {[%emt 0:00:12]} Bxf6 {[%emt 0:00:09]} 11. c4 {[%emt 0:00:22]} b4 {[%emt 0:00:15]} 12. Nc2 {[%emt 0:00:16]} a5 {[%emt 0:00:08]} 13. g3 {[%emt 0:00:34]} O-O {[%emt 0:02:15]} 14. h4 {[%emt 0:00:17]} Be6 {[%emt 0:08:02]} 15. Bh3 {[%emt 0:00:19]} Bxh3 {[%emt 0:08:33]} 16. Rxh3 {[%emt 0:00:13]} Be7 {[%emt 0:04:51]} 17. Qf3 {[%emt 0:05:10]} Qd7 {[%emt 0:00:30]} 18. g4 {[%emt 0:01:32]} Rab8 {[%emt 0:02:00]} 19. Kf1 {[%emt 0:01:57]} a4 {[%emt 0:01:46]} 20. b3 {[%emt 0:03:09]} a3 {[%emt 0:02:03]} 21. Kg2 {[%emt 0:00:30]} f6 {[%emt 0:00:30]} 22. Rah1 {[%emt 0:09:38]} Rf7 23. Qg3 {[%emt 0:10:39]} h6 {[%emt 0:05:12]} 24. g5 {[%emt 0:00:30]} fxg5 {[%emt 0:00:16]} 25. Nxe7+ {[%emt 0:01:11]} Nxe7 {[%emt 0:03:00]} 26. hxg5 {[%emt 0:03:43]} Ng6 {[%emt 0:02:05]} 27. Kf1 {[%emt 0:07:35]} hxg5 {[%emt 0:00:30]} 28. Qxg5 {[%emt 0:02:51]} Qa7 {[%emt 0:01:29]} 29. R3h2 {[%emt 0:09:32]} Rf6 {[%emt 0:01:52]} 30. Qg3 {[%emt 0:00:30]} Kf7 {[%emt 0:00:30]} 31. Rg1 {[%emt 1:30:30]} Rf8 {[%emt 1:37:49]} 32. Nxb4 {[%emt 0:05:44]} Ke8 {[%emt 0:04:09]} 33. Nd5 {[%emt 0:03:28]} Re6 {[%emt 0:09:45]} 34. Qh3 {[%emt 0:02:52]} Nf4 {[%emt 0:00:27]} 35. Nxf4 {[%emt 0:03:44]} Ref6 {[%emt 0:00:30]} 36. Nd3 {[%emt 0:15:44]} Kd8 {[%emt 0:03:29]} 37. Qg4 {[%emt 0:00:30]} Qd4 {[%emt 0:01:50]} 38. Qe2 {[%emt 0:03:23]} Rf3 {[%emt 0:04:16]} 39. Ne1 {[%emt 0:05:00]} R3f4 {[%emt 0:00:00]} 40. Rg3 {[%emt 0:00:00]} Rxe4 {[%emt 0:00:00]} 41. Qd3 {[%emt 0:00:00]} Kc7 {[%emt 0:00:00]} 42. Qxd4 {[%emt 0:00:00]} Rxd4 {[%emt 0:00:00]} 43. Rxg7+ {[%emt 0:00:00]} Kc6 {[%emt 0:00:00]} 44. Ke2 {[%emt 0:00:00]} Rd8 {[%emt 0:00:00]} 45. Nc2 {[%emt 0:00:00]} Re4+ {[%emt 0:00:00]} 46. Kd3 {[%emt 0:00:00]} Rf4 {[%emt 0:00:00]} 47. Ne3 {[%emt 0:00:00]} Kc5 {[%emt 0:00:00]} 48. Nd5 {[%emt 0:00:00]} Rf3+ 49. Ke4 {[%emt 0:00:00]} Rf4+ {[%emt 0:00:09]} 50. Nxf4 {[%emt 0:00:00]} exf4 {[%emt 0:00:19]} 51. Kxf4 {[%emt 0:00:00]} Kd4 52. Rg5 {[%emt 0:00:00]} Kc3 {[%emt 0:00:38]} 53. f3 {[%emt 0:00:00]} Rf8+ {[%emt 0:01:21]} 54. Ke4 {[%emt 0:00:00]} Re8+ {[%emt 0:00:51]} 55. Kd5 {[%emt 0:00:00]} Rc8 {[%emt 0:00:30]} 56. Kxd6 {[%emt 0:00:00]} Rd8+ {[%emt 0:00:30]} 1/2-1/2

[Event "GER-chT Youth Countries 2020"]
[Site "Berlin"]
[Date "2020.10.03"]
[Round "6"]
[White "Goepfert, Christian"]
[Black "Kiefhaber, Tobias"]
[Result "0-1"]
[ECO "B12"]
[WhiteElo "1603"]
[BlackElo "1542"]
[Annotator "NA"]
[PlyCount "65"]
[EventDate "2020.09.30"]
[EventType "team-tourn"]
[EventRounds "7"]
[EventCountry "GER"]
[SourceTitle "playchess.com"]
[Source "ChessBase"]
[SourceQuality "1"]
[TimeControl "30/5400+30:0"]

1. e4 {[%emt 0:00:00]} c6 {[%emt 0:00:00]} 2. d4 {[%emt 0:00:00]} d5 {[%emt 0:00:00]} 3. e5 {[%emt 0:00:00]} Bf5 {[%emt 0:00:19]} 4. h4 {[%emt 0:00:16]} h5 {[%emt 0:00:10]} 5. Bd3 {[%emt 0:01:02]} Bxd3 {[%emt 0:00:21]} 6. Qxd3 {[%emt 0:00:09]} e6 {[%emt 0:00:22]} 7. Bg5 {[%emt 0:00:19]} Ne7 {[%emt 0:01:21]} 8. Ne2 {[%emt 0:02:10]} Qc7 {[%emt 0:03:06]} 9. Ng3 {[%emt 0:03:02]} Nd7 {[%emt 0:03:04]} 10. O-O {[%emt 0:01:24]} O-O-O {[%emt 0:01:33]} 11. Qf3 {[%emt 0:06:19]} f6 {[%emt 0:21:58]} 12. exf6 {[%emt 0:01:39]} gxf6 {[%emt 0:00:16]} 13. Bxf6 {[%emt 0:00:46]} Nxf6 {[%emt 0:00:13]} 14. Qxf6 {[%emt 0:00:15]} Rh6 {[%emt 0:00:31]} 15. Qf3 {[%emt 0:09:57]} Ng6 {[%emt 0:02:04]} 16. Nd2 {[%emt 0:02:51]} Nxh4 {[%emt 0:02:20]} 17. Qe3 {[%emt 0:00:48]} Nf5 {[%emt 0:04:37]} 18. Nxf5 {[%emt 0:01:18]} exf5 {[%emt 0:00:19]} 19. Nf3 {[%emt 0:02:45]} h4 {[%emt 0:04:53]} 20. Qg5 {[%emt 0:08:00]} Qh7 {[%emt 0:16:23]} 21. Rae1 {[%emt 0:05:38]} Bd6 {[%emt 0:07:22]} 22. Ne5 {[%emt 0:06:43]} Rg8 {[%emt 0:09:57]} 23. Qe3 {[%emt 0:00:44]} Bxe5 {[%emt 0:01:24]} 24. Qxe5 {[%emt 0:02:02]} Qg6 {[%emt 0:01:09]} 25. Qh2 {[%emt 0:02:02]} h3 {[%emt 0:01:39]} 26. g3 {[%emt 0:00:27]} f4 {[%emt 0:00:15]} 27. Re2 {[%emt 0:01:47]} fxg3 {[%emt 0:01:13]} 28. fxg3 {[%emt 0:00:16]} Qxg3+ {[%emt 0:01:27]} 29. Qxg3 {[%emt 0:00:17]} Rxg3+ {[%emt 0:00:10]} 30. Kh2 {[%emt 0:00:07]} Rhg6 {[%emt 0:03:10]} 31. Ref2 {[%emt 1:31:43]} Kc7 {[%emt 1:32:20]} 32. b3 {[%emt 0:01:37]} b5 {[%emt 0:01:56]} 33. a3 {[%emt 0:01:37]} 0-1

[Event "GER-chT Youth Countries 2020"]
[Site "Berlin"]
[Date "2020.10.03"]
[Round "6"]
[White "Schulz, Hannah"]
[Black "Wagner, Margarethe"]
[Result "0-1"]
[ECO "B90"]
[WhiteElo "1589"]
[BlackElo "1804"]
[Annotator "NA"]
[PlyCount "81"]
[EventDate "2020.09.30"]
[EventType "team-tourn"]
[EventRounds "7"]
[EventCountry "GER"]
[SourceTitle "playchess.com"]
[Source "ChessBase"]
[SourceQuality "1"]
[TimeControl "30/5400+30:0"]

1. e4 {[%emt 0:00:00]} c5 {[%emt 0:00:00]} 2. Nf3 {[%emt 0:00:00]} d6 {[%emt 0:00:00]} 3. d4 {[%emt 0:00:00]} cxd4 {[%emt 0:00:00]} 4. Nxd4 {[%emt 0:00:00]} Nf6 {[%emt 0:00:00]} 5. Nc3 {[%emt 0:00:00]} a6 {[%emt 0:00:06]} 6. Be3 {[%emt 0:00:25]} e5 {[%emt 0:00:53]} 7. Nf3 {[%emt 0:00:25]} h6 {[%emt 0:01:20]} 8. Bc4 {[%emt 0:00:45]} Be7 {[%emt 0:01:29]} 9. Bb3 {[%emt 0:12:57]} Nbd7 {[%emt 0:03:14]} 10. a4 {[%emt 0:03:23]} b6 {[%emt 0:01:34]} 11. O-O {[%emt 0:05:20]} Bb7 {[%emt 0:02:12]} 12. Qd3 {[%emt 0:02:32]} Qc7 {[%emt 0:02:53]} 13. Rfd1 {[%emt 0:05:13]} O-O {[%emt 0:02:11]} 14. Rac1 {[%emt 0:02:16]} Rfd8 {[%emt 0:05:51]} 15. Nd5 {[%emt 0:02:12]} Nxd5 {[%emt 0:05:22]} 16. Bxd5 {[%emt 0:00:26]} Bxd5 {[%emt 0:02:43]} 17. Qxd5 {[%emt 0:00:29]} Rab8 {[%emt 0:03:18]} 18. c4 {[%emt 0:03:08]} Nf6 {[%emt 0:01:10]} 19. Qd3 {[%emt 0:02:21]} Qb7 {[%emt 0:01:33]} 20. Nd2 {[%emt 0:00:59]} b5 {[%emt 0:05:06]} 21. axb5 {[%emt 0:09:14]} axb5 {[%emt 0:00:13]} 22. f3 {[%emt 0:01:36]} bxc4 {[%emt 0:03:57]} 23. Nxc4 {[%emt 0:01:10]} Qb5 {[%emt 0:07:41]} 24. Rb1 {[%emt 0:10:42]} Kf8 {[%emt 0:09:40]} 25. Na3 {[%emt 0:02:24]} Qxd3 {[%emt 0:01:40]} 26. Rxd3 {[%emt 0:00:21]} d5 {[%emt 0:00:32]} 27. exd5 {[%emt 0:00:25]} Rxd5 {[%emt 0:01:06]} 28. Rc3 {[%emt 0:05:16]} Ke8 {[%emt 0:08:27]} 29. Nc4 {[%emt 0:04:25]} Nd7 {[%emt 0:07:50]} 30. b3 {[%emt 0:04:48]} Rdb5 {[%emt 0:02:46]} 31. Kf2 {[%emt 1:32:31]} f5 {[%emt 1:34:18]} 32. Ke2 {[%emt 0:06:05]} Nf6 {[%emt 0:03:04]} 33. f4 {[%emt 0:05:00]} Nd5 {[%emt 0:01:53]} 34. Rc2 {[%emt 0:02:27]} Nxf4+ {[%emt 0:05:26]} 35. Bxf4 {[%emt 0:00:40]} exf4 {[%emt 0:00:06]} 36. Rcb2 {[%emt 0:00:25]} Kf7 {[%emt 0:00:51]} 37. Kd3 {[%emt 0:01:13]} g5 {[%emt 0:01:21]} 38. Nd2 {[%emt 0:01:26]} g4 {[%emt 0:02:08]} 39. Rf1 {[%emt 0:00:52]} Rb4 {[%emt 0:02:09]} 40. h3 {[%emt 0:00:59]} Bf6 {[%emt 0:01:29]} 41. Rbb1 {[%emt 0:00:38]} 0-1

[Event "GER-chT Youth Countries 2020"]
[Site "Berlin"]
[Date "2020.10.03"]
[Round "6"]
[White "Fischer, Juliane"]
[Black "Trunz, Michelle"]
[Result "0-1"]
[ECO "B23"]
[WhiteElo "1509"]
[BlackElo "1662"]
[Annotator "NA"]
[PlyCount "84"]
[EventDate "2020.09.30"]
[EventType "team-tourn"]
[EventRounds "7"]
[EventCountry "GER"]
[SourceTitle "playchess.com"]
[Source "ChessBase"]
[SourceQuality "1"]
[TimeControl "30/5400+30:0"]

1. e4 {[%emt 0:00:00]} c5 {[%emt 0:00:00]} 2. Nc3 {[%emt 0:00:00]} d6 {[%emt 0:00:00]} 3. f4 {[%emt 0:00:00]} g6 {[%emt 0:00:16]} 4. Nf3 {[%emt 0:00:57]} Bg7 {[%emt 0:00:09]} 5. Bb5+ {[%emt 0:03:08]} Bd7 {[%emt 0:00:30]} 6. Bxd7+ {[%emt 0:00:23]} Qxd7 {[%emt 0:00:13]} 7. O-O {[%emt 0:00:20]} e6 {[%emt 0:00:24]} 8. d3 {[%emt 0:04:47]} Ne7 {[%emt 0:00:15]} 9. Qe1 {[%emt 0:01:32]} a6 {[%emt 0:00:29]} 10. Be3 {[%emt 0:08:02]} b5 {[%emt 0:00:38]} 11. d4 {[%emt 0:01:26]} c4 {[%emt 0:01:20]} 12. Rd1 {[%emt 0:00:57]} d5 {[%emt 0:01:10]} 13. Ne5 {[%emt 0:05:41]} Qd8 {[%emt 0:01:42]} 14. exd5 {[%emt 0:03:13]} exd5 {[%emt 0:02:05]} 15. Bf2 {[%emt 0:04:11]} O-O {[%emt 0:00:19]} 16. Bh4 {[%emt 0:00:55]} f6 {[%emt 0:02:18]} 17. Nf3 {[%emt 0:00:23]} Qd7 {[%emt 0:00:55]} 18. Qe3 {[%emt 0:06:11]} Nf5 {[%emt 0:00:40]} 19. Qf2 {[%emt 0:00:14]} b4 {[%emt 0:00:34]} 20. Ne2 {[%emt 0:01:01]} Nc6 {[%emt 0:01:20]} 21. Rfe1 {[%emt 0:05:08]} Rae8 {[%emt 0:00:35]} 22. Ng3 {[%emt 0:01:38]} Nd6 {[%emt 0:07:54]} 23. c3 {[%emt 0:01:34]} a5 {[%emt 0:00:52]} 24. Nd2 {[%emt 0:01:20]} g5 {[%emt 0:07:17]} 25. Rxe8 {[%emt 0:01:43]} Nxe8 {[%emt 0:00:28]} 26. Bxg5 {[%emt 0:00:55]} fxg5 {[%emt 0:00:17]} 27. f5 {[%emt 0:00:50]} Bf6 {[%emt 0:01:27]} 28. Qf3 {[%emt 0:02:12]} Nc7 {[%emt 0:02:31]} 29. Qh5 {[%emt 0:02:46]} Qe8 {[%emt 0:02:22]} 30. Qg4 {[%emt 0:01:00]} Qe3+ {[%emt 0:02:28]} 31. Kh1 {[%emt 1:30:43]} bxc3 {[%emt 1:32:26]} 32. bxc3 {[%emt 0:00:30]} Nb5 {[%emt 0:01:43]} 33. Nf3 {[%emt 0:02:03]} Qf4 {[%emt 0:02:12]} 34. Qxf4 {[%emt 0:01:27]} gxf4 {[%emt 0:00:09]} 35. Nh5 {[%emt 0:00:30]} Nxc3 {[%emt 0:02:26]} 36. Rd2 {[%emt 0:00:28]} Ne4 {[%emt 0:00:26]} 37. Re2 {[%emt 0:00:22]} Kf7 {[%emt 0:01:08]} 38. Nxf4 {[%emt 0:00:15]} Nxd4 {[%emt 0:00:35]} 39. Nxd4 {[%emt 0:00:16]} Bxd4 {[%emt 0:00:34]} 40. Nxd5 {[%emt 0:00:14]} Re8 {[%emt 0:01:44]} 41. Nf4 {[%emt 0:01:00]} Nf2+ {[%emt 0:00:32]} 42. Kg1 {[%emt 0:00:08]} Nh3+ {[%emt 0:00:33]} 0-1